fUST/lending_fUST_20250726
["ID","MTS","AMOUNT","RATE_DAILY","PERIOD"]
[375085169,1753522242826,-460.0,0.00019452,2]
[375085171,1753522242835,-460.0,0.00019452,2]
[375085173,1753522242845,-460.0,0.00019452,2]
[375085175,1753522242854,-460.0,0.00019452,2]
[375085177,1753522242863,-619.5,0.00019452,2]
[375085179,1753522242873,-928.73,0.00019452,2]
[375085181,1753522242884,-460.0,0.00019452,2]
[375085183,1753522242894,-1034.45,0.00019452,2]
[375085185,1753522242903,-572.94459415,0.00019452,2]
[375085187,1753522242912,-219.461972,0.00019452,2]
[375085189,1753522242922,-3165.41,0.00019452,2]
[375085190,1753522242932,-984.52,0.00019452,2]
[375085191,1753522242942,-4002.67,0.00019452,2]
[375085192,1753522242952,-3739.49,0.00019452,2]
[375085193,1753522242961,-460.0,0.00019452,2]
[375085194,1753522242971,-573.35,0.00019452,2]
[375085195,1753522242981,-460.0,0.00019452,2]
[375085196,1753522242991,-1082.57,0.00019452,2]
[375085197,1753522243000,-460.0,0.00019452,2]
[375085198,1753522243010,-460.0,0.00019452,2]
[375085199,1753522243019,-460.0,0.00019452,2]
[375085200,1753522243029,-918.24,0.00019452,2]
[375085201,1753522243038,-2703.07,0.00019452,2]
[375085202,1753522243047,-674.37,0.00019452,2]
[375085204,1753522243057,-197.26026755,0.00019452,2]
[375085206,1753522243066,-460.0,0.00019452,2]
[375085208,1753522243076,-1584.35,0.00019452,2]
[375085210,1753522243085,-460.0,0.00019452,2]
[375085212,1753522243094,-726.62,0.00019452,2]
[375085214,1753522243103,-460.0,0.00019452,2]
[375085216,1753522243113,-595.67,0.00019452,2]
[375085218,1753522243122,-460.0,0.00019452,2]
[375085221,1753522243132,-460.0,0.00019452,2]
[375085223,1753522243141,-532.99586021,0.00019452,2]
[375085226,1753522243150,-2458.88,0.00019452,2]
[375085228,1753522243159,-460.0,0.00019452,2]
[375085230,1753522243168,-460.0,0.00019452,2]
[375085232,1753522243178,-392.2186053,0.00019452,2]
[375085234,1753522243188,-460.0,0.00019452,2]
[375085236,1753522243197,-460.0,0.00019452,2]
[375085238,1753522243206,-751.64,0.00019452,2]
[375085240,1753522243216,-460.0,0.00019452,2]
[375085242,1753522243225,-460.0,0.00019452,2]
[375085244,1753522243234,-460.0,0.00019452,2]
[375085246,1753522243244,-460.0,0.00019452,2]
[375085248,1753522243254,-1908.96,0.00019452,2]
[375085250,1753522243265,-693.92,0.00019452,2]
[375085252,1753522243274,-835.25,0.00019452,2]
[375085254,1753522243283,-3327.66,0.00019452,2]
[375085256,1753522243293,-460.0,0.00019452,2]
[375085258,1753522243302,-3548.08,0.00019452,2]
[375085260,1753522243312,-460.0,0.00019452,2]
[375085262,1753522243322,-460.0,0.00019452,2]
[375085264,1753522243332,-714.53,0.00019452,2]
[375085266,1753522243342,-1195.09,0.00019452,2]
[375085268,1753522243351,-11798.64,0.00019452,2]
[375085270,1753522243361,-460.0,0.00019452,2]
[375085272,1753522243370,-491.19,0.00019452,2]
[375085274,1753522243380,-460.0,0.00019452,2]
[375085276,1753522243390,-562.2,0.00019452,2]
[375085278,1753522243399,-469.88118433,0.00019452,2]
[375085280,1753522243409,-460.0,0.00019452,2]
[375085282,1753522243418,-594.41,0.00019452,2]
[375085284,1753522243427,-460.0,0.00019452,2]
[375085286,1753522243436,-277.66243414,0.00019452,2]
[375085288,1753522243445,-685.85,0.00019452,2]
[375085290,1753522243454,-1737.36,0.00019452,2]
[375085292,1753522243463,-460.0,0.00019452,2]
[375085294,1753522243475,-930.64,0.00019452,2]
[375085295,1753522243485,-460.0,0.00019452,2]
[375085297,1753522243494,-160.0,0.00019464,2]
[375085299,1753522243504,-160.0,0.00019464,2]
[375085301,1753522243513,-160.0,0.00019464,2]
[375085303,1753522243525,-12629.83479014,0.00019464,2]
[375085305,1753522243534,-215.9757969,0.00019464,2]
[375085307,1753522243543,-312.16666667,0.00019464,2]
[375085309,1753522243553,-840.57612966,0.00019464,2]
[375085311,1753522243562,-214.8008262,0.00019464,2]
[375085313,1753522243571,-526.41699184,0.00019464,2]
[375085315,1753522243580,-160.0,0.00019464,2]
[375085317,1753522243589,-476.98041219,0.00019464,2]
[375085319,1753522243598,-160.0,0.00019466,2]
[375085321,1753522243608,-160.0,0.00019466,2]
[375085323,1753522243617,-231.25662632,0.00019466,2]
[375085333,1753522243703,-160.0,0.00019466,2]
[375085335,1753522243714,-160.0,0.00019466,2]
[375085337,1753522243724,-500.0,0.00019473,2]
[375085339,1753522243733,-241.23808633,0.00019473,2]
[375085341,1753522243744,-516.03347122,0.00019473,2]
[375085343,1753522243754,-501.17495243,0.00019473,2]
[375085345,1753522243763,-160.33996799,0.00019473,2]
[375085347,1753522243772,-500.0,0.00019473,2]
[375085348,1753522243782,-246.81739548,0.00019626,2]
[375085350,1753522243791,-4018.57129629,0.00019626,2]
[375085352,1753522243802,-577.8715194,0.000197,2]
[375085354,1753522243811,-460.0,0.00019726,2]
[375085356,1753522243820,-760.947282,0.00019726,2]
[375085358,1753522243830,-760.947282,0.00019726,2]
[375085360,1753522243839,-760.947282,0.00019726,2]
[375085362,1753522243848,-760.947282,0.00019726,2]
[375085364,1753522243857,-460.0,0.00019726,2]
[375085366,1753522243866,-460.0,0.00019726,2]
[375085368,1753522243875,-460.0,0.00019726,2]
[375085370,1753522243885,-460.0,0.00019726,2]
[375085372,1753522243894,-460.0,0.00019726,2]
[375085374,1753522243903,-460.0,0.00019726,2]
[375085376,1753522243913,-210.006976,0.00019726,2]
[375085378,1753522243922,-590.67,0.00019726,2]
[375085380,1753522243931,-471.83709063,0.00019726,2]
[375085382,1753522243941,-151.0,0.00019726,2]
[375085384,1753522243950,-460.0,0.00019726,2]
[375085386,1753522243959,-460.0,0.00019726,2]
[375085388,1753522243969,-460.0,0.00019726,2]
[375085390,1753522243978,-493.48910538,0.00019726,2]
[375085392,1753522243987,-460.0,0.00019726,2]
[375085394,1753522243996,-661.68,0.00019726,2]
[375085395,1753522244005,-460.0,0.00019726,2]
[375085398,1753522244015,-460.0,0.00019726,2]
[375085399,1753522244024,-460.0,0.00019726,2]
[375085401,1753522244033,-377.29584158,0.00019726,2]
[375085403,1753522244043,-460.0,0.00019726,2]
[375085405,1753522244052,-151.0,0.00019726,2]
[375085407,1753522244061,-460.0,0.00019726,2]
[375085409,1753522244071,-390.70756936,0.00019726,2]
[375085411,1753522244080,-460.0,0.00019726,2]
[375085413,1753522244090,-151.0,0.00019726,2]
[375085415,1753522244099,-460.0,0.00019726,2]
[375085417,1753522244108,-582.45,0.00019726,2]
[375085419,1753522244117,-240.6657025,0.00019726,2]
[375085421,1753522244126,-460.0,0.00019726,2]
[375085423,1753522244135,-1208.67,0.00019726,2]
[375085425,1753522244144,-460.0,0.00019726,2]
[375085427,1753522244154,-569.79748834,0.00019726,2]
[375085429,1753522244163,-460.0,0.00019726,2]
[375085431,1753522244172,-1010.11,0.00019726,2]
[375085432,1753522244180,-460.0,0.00019726,2]
[375085434,1753522244190,-460.0,0.00019726,2]
[375085436,1753522244199,-460.0,0.00019726,2]
[375085438,1753522244209,-460.0,0.00019726,2]
[375085440,1753522244218,-460.0,0.00019726,2]
[375085442,1753522244228,-460.0,0.00019726,2]
[375085444,1753522244237,-460.0,0.00019726,2]
[375085446,1753522244247,-460.0,0.00019726,2]
[375085448,1753522244256,-460.0,0.00019726,2]
[375085450,1753522244266,-151.0,0.00019726,2]
[375085452,1753522244275,-460.0,0.00019726,2]
[375085454,1753522244285,-151.0,0.00019726,2]
[375085456,1753522244294,-653.71,0.00019726,2]
[375085458,1753522244303,-460.0,0.00019726,2]
[375085460,1753522244312,-460.0,0.00019726,2]
[375085462,1753522244321,-460.0,0.00019726,2]
[375085464,1753522244331,-460.0,0.00019726,2]
[375085466,1753522244343,-429.13335672,0.00019726,2]
[375085468,1753522244353,-1024.16,0.00019726,2]
[375085470,1753522244363,-460.0,0.00019726,2]
[375085472,1753522244372,-161.595943,0.00019726,2]
[375085474,1753522244381,-161.595943,0.00019726,2]
[375085476,1753522244391,-460.0,0.00019726,2]
[375085478,1753522244400,-161.595943,0.00019726,2]
[375085480,1753522244408,-161.595943,0.00019726,2]
[375085482,1753522244418,-460.0,0.00019726,2]
[375085484,1753522244427,-591.48669691,0.00019726,2]
[375085486,1753522244437,-460.0,0.00019726,2]
[375085488,1753522244446,-460.0,0.00019726,2]
[375085490,1753522244455,-963.76,0.00019726,2]
[375085491,1753522244464,-460.0,0.00019726,2]
[375085493,1753522244476,-151.0,0.00019726,2]
[375085495,1753522244485,-625.99,0.00019726,2]
[375085497,1753522244495,-460.0,0.00019726,2]
[375085499,1753522244504,-460.0,0.00019726,2]
[375085501,1753522244513,-465.80960585,0.00019726,2]
[375085503,1753522244522,-460.0,0.00019726,2]
[375085505,1753522244532,-552.13,0.00019726,2]
[375085507,1753522244541,-460.0,0.00019726,2]
[375085509,1753522244551,-1556.48,0.00019726,2]
[375085511,1753522244560,-460.0,0.00019726,2]
[375085513,1753522244569,-509.44,0.00019726,2]
[375085515,1753522244579,-2548.54,0.00019726,2]
[375085517,1753522244588,-900.37,0.00019726,2]
[375085519,1753522244599,-1206.65,0.00019726,2]
[375085521,1753522244608,-460.0,0.00019726,2]
[375085523,1753522244618,-460.0,0.00019726,2]
[375085525,1753522244627,-460.0,0.00019726,2]
[375085527,1753522244637,-3341.87,0.00019726,2]
[375085529,1753522244647,-1171.81,0.00019726,2]
[375085531,1753522244656,-460.0,0.00019726,2]
[375085533,1753522244666,-460.0,0.00019726,2]
[375085535,1753522244675,-460.0,0.00019726,2]
[375085537,1753522244685,-1178.88,0.00019726,2]
[375085539,1753522244694,-460.0,0.00019726,2]
[375085541,1753522244703,-460.0,0.00019726,2]
[375085543,1753522244713,-460.0,0.00019726,2]
[375085545,1753522244722,-460.0,0.00019726,2]
[375085546,1753522244731,-5956.3,0.00019726,2]
[375085548,1753522244740,-3583.64,0.00019726,2]
[375085550,1753522244749,-1603.51,0.00019726,2]
[375085552,1753522244759,-467.56894109,0.00019726,2]
[375085554,1753522244770,-151.0,0.00019726,2]
[375085556,1753522244779,-167.39014,0.00019726,2]
[375085558,1753522244789,-460.0,0.00019726,2]
[375085560,1753522244798,-460.0,0.00019726,2]
[375085562,1753522244807,-460.0,0.00019726,2]
[375085564,1753522244816,-2241.88,0.00019726,2]
[375085566,1753522244826,-460.0,0.00019726,2]
[375085568,1753522244836,-460.0,0.00019726,2]
[375085570,1753522244845,-789.36,0.00019726,2]
[375085572,1753522244855,-460.0,0.00019726,2]
[375085574,1753522244865,-460.0,0.00019726,2]
[375085576,1753522244874,-797.04,0.00019726,2]
[375085578,1753522244884,-460.0,0.00019726,2]
[375085580,1753522244893,-211.0039443,0.00019726,2]
[375085582,1753522244902,-460.0,0.00019726,2]
[375085584,1753522244912,-460.0,0.00019726,2]
[375085586,1753522244921,-460.0,0.00019726,2]
[375085588,1753522244931,-460.0,0.00019726,2]
[375085590,1753522244940,-460.0,0.00019726,2]
[375085592,1753522244950,-460.0,0.00019726,2]
[375085594,1753522244959,-619.5,0.00019726,2]
[375085596,1753522244969,-928.73,0.00019726,2]
[375085598,1753522244977,-460.0,0.00019726,2]
[375085600,1753522244987,-1034.45,0.00019726,2]
[375085602,1753522244997,-3165.41,0.00019726,2]
[375085604,1753522245006,-984.52,0.00019726,2]
[375085606,1753522245016,-4002.67,0.00019726,2]
[375085608,1753522245026,-3739.49,0.00019726,2]
[375085610,1753522245036,-460.0,0.00019726,2]
[375085612,1753522245045,-573.35,0.00019726,2]
[375085614,1753522245054,-460.0,0.00019726,2]
[375085616,1753522245064,-1082.57,0.00019726,2]
[375085618,1753522245073,-460.0,0.00019726,2]
[375085620,1753522245082,-460.0,0.00019726,2]
[375085622,1753522245091,-918.24,0.00019726,2]
[375085624,1753522245102,-2703.07,0.00019726,2]
[375085626,1753522245111,-674.37,0.00019726,2]
[375085628,1753522245121,-460.0,0.00019726,2]
[375085630,1753522245130,-1584.35,0.00019726,2]
[375085632,1753522245140,-460.0,0.00019726,2]
[375085634,1753522245149,-726.62,0.00019726,2]
[375085636,1753522245158,-460.0,0.00019726,2]
[375085638,1753522245168,-467.31220708,0.00019726,2]
[375085640,1753522245177,-595.67,0.00019726,2]
[375085642,1753522245187,-460.0,0.00019726,2]
[375085644,1753522245196,-2458.88,0.00019726,2]
[375085645,1753522245205,-460.0,0.00019726,2]
[375085648,1753522245215,-460.0,0.00019726,2]
[375085649,1753522245224,-460.0,0.00019726,2]
[375085651,1753522245233,-460.0,0.00019726,2]
[375085662,1753522245321,-751.64,0.00019726,2]
[375085664,1753522245330,-460.0,0.00019726,2]
[375085666,1753522245339,-460.0,0.00019726,2]
[375085668,1753522245348,-460.0,0.00019726,2]
[375085669,1753522245358,-460.0,0.00019726,2]
[375085671,1753522245367,-1908.96,0.00019726,2]
[375085673,1753522245376,-693.92,0.00019726,2]
[375085675,1753522245385,-835.25,0.00019726,2]
[375085677,1753522245395,-3327.66,0.00019726,2]
[375085679,1753522245405,-460.0,0.00019726,2]
[375085681,1753522245414,-3548.08,0.00019726,2]
[375085683,1753522245423,-460.0,0.00019726,2]
[375085685,1753522245433,-714.53,0.00019726,2]
[375085687,1753522245442,-1195.09,0.00019726,2]
[375085689,1753522245451,-11798.64,0.00019726,2]
[375085691,1753522245461,-491.19,0.00019726,2]
[375085693,1753522245470,-460.0,0.00019726,2]
[375085695,1753522245482,-562.2,0.00019726,2]
[375085697,1753522245492,-460.0,0.00019726,2]
[375085699,1753522245500,-594.41,0.00019726,2]
[375085701,1753522245509,-460.0,0.00019726,2]
[375085703,1753522245520,-685.85,0.00019726,2]
[375085705,1753522245529,-1737.36,0.00019726,2]
[375085707,1753522245538,-460.0,0.00019726,2]
[375085708,1753522245547,-930.64,0.00019726,2]
[375085709,1753522245556,-460.0,0.00019726,2]
[375085710,1753522245566,-158.37060469,0.00019773,2]
[375085711,1753522245575,-500.0,0.00019773,2]
[375085712,1753522245584,-500.0,0.00019773,2]
[375085713,1753522245593,-501.05926252,0.00019773,2]
[375085714,1753522245602,-356.3491356,0.000198,2]
[375085715,1753522245611,-318.2074684,0.000198,2]
[375085716,1753522245619,-577.8715194,0.000198,2]
[375085717,1753522245628,-577.8715194,0.000198,2]
[375085718,1753522245637,-317.257115,0.00019867,2]
[375085719,1753522245646,-604.332,0.00019885,2]
[375085720,1753522245655,-246.81739548,0.000199,2]
[375085721,1753522245664,-153.75,0.0001995,2]
[375085722,1753522245673,-3301.33283952,0.00019965,2]
[375085723,1753522245682,-500.0,0.00019973,2]
[375085724,1753522245691,-500.0,0.00019973,2]
[375085725,1753522245700,-500.0,0.00019973,2]
[375085726,1753522245709,-164.24585049,0.00019973,2]
[375085727,1753522245718,-160.3790415,0.00019973,2]
[375085728,1753522245728,-158.37201792,0.00019973,2]
[375085729,1753522245737,-500.0,0.00019973,2]
[375085730,1753522245746,-348.09548688,0.00019973,2]
[375085731,1753522245755,-500.0,0.00019973,2]
[375085732,1753522245764,-151.0,0.0002,2]
[375085733,1753522245774,-479.11543137,0.0002,2]
[375085734,1753522245783,-760.947282,0.0002,2]
[375085735,1753522245792,-760.947282,0.0002,2]
[375085736,1753522245801,-760.947282,0.0002,2]
[375085737,1753522245810,-760.947282,0.0002,2]
[375085738,1753522245819,-460.0,0.0002,2]
[375085739,1753522245828,-460.0,0.0002,2]
[375085740,1753522245840,-460.0,0.0002,2]
[375085741,1753522245850,-460.0,0.0002,2]
[375085743,1753522245860,-151.0,0.0002,2]
[375085745,1753522245870,-460.0,0.0002,2]
[375085747,1753522245880,-151.0,0.0002,2]
[375085749,1753522245890,-460.0,0.0002,2]
[375085751,1753522245899,-151.0,0.0002,2]
[375085753,1753522245909,-460.0,0.0002,2]
[375085755,1753522245918,-460.0,0.0002,2]
[375085757,1753522245928,-661.68,0.0002,2]
[375085759,1753522245937,-460.0,0.0002,2]
[375085761,1753522245946,-460.0,0.0002,2]
[375085763,1753522245956,-460.0,0.0002,2]
[375085765,1753522245965,-460.0,0.0002,2]
[375085767,1753522245974,-460.0,0.0002,2]
[375085769,1753522245984,-460.0,0.0002,2]
[375085771,1753522245992,-151.0,0.0002,2]
[375085773,1753522246002,-582.45,0.0002,2]
[375085774,1753522246011,-460.0,0.0002,2]
[375085777,1753522246021,-1208.67,0.0002,2]
[375085779,1753522246039,-460.0,0.0002,2]
[375085782,1753522246053,-460.0,0.0002,2]
[375085784,1753522246067,-1010.11,0.0002,2]
[375085787,1753522246082,-460.0,0.0002,2]
[375085789,1753522246100,-511.73837375,0.0002,2]
[375085792,1753522246116,-460.0,0.0002,2]
[375085794,1753522246129,-460.0,0.0002,2]
[375085797,1753522246141,-460.0,0.0002,2]
[375085799,1753522246155,-151.0,0.0002,2]
[375085802,1753522246169,-596.0,0.0002,2]
[375085804,1753522246184,-151.0,0.0002,2]
[375085807,1753522246198,-153.19288286,0.0002,2]
[375085809,1753522246212,-151.0,0.0002,2]
[375085811,1753522246225,-151.0,0.0002,2]
[375085814,1753522246243,-460.0,0.0002,2]
[375085817,1753522246257,-152.20337923,0.0002,2]
[375085819,1753522246273,-151.0,0.0002,2]
[375085822,1753522246286,-151.0,0.0002,2]
[375085824,1753522246300,-220.17848307,0.0002,2]
[375085827,1753522246315,-151.0,0.0002,2]
[375085829,1753522246328,-151.0,0.0002,2]
[375085831,1753522246338,-573.43251099,0.0002,2]
[375085833,1753522246350,-460.0,0.0002,2]
[375085836,1753522246367,-460.0,0.0002,2]
[375085838,1753522246380,-151.0,0.0002,2]
[375085840,1753522246392,-460.0,0.0002,2]
[375085843,1753522246404,-151.0,0.0002,2]
[375085845,1753522246418,-653.71,0.0002,2]
[375085847,1753522246429,-460.0,0.0002,2]
[375085850,1753522246441,-460.0,0.0002,2]
[375085852,1753522246453,-460.0,0.0002,2]
[375085854,1753522246465,-460.0,0.0002,2]
[375085856,1753522246480,-1024.16,0.0002,2]
[375085859,1753522246493,-460.0,0.0002,2]
[375085861,1753522246504,-161.595943,0.0002,2]
[375085863,1753522246516,-460.0,0.0002,2]
[375085865,1753522246528,-161.595943,0.0002,2]
[375085868,1753522246540,-460.0,0.0002,2]
[375085870,1753522246553,-460.0,0.0002,2]
[375085872,1753522246566,-464.88709639,0.0002,2]
[375085874,1753522246579,-963.76,0.0002,2]
[375085877,1753522246591,-485.40378814,0.0002,2]
[375085879,1753522246604,-151.0,0.0002,2]
[375085881,1753522246616,-460.0,0.0002,2]
[375085883,1753522246628,-625.99,0.0002,2]
[375085886,1753522246640,-460.0,0.0002,2]
[375085888,1753522246653,-460.0,0.0002,2]
[375085890,1753522246665,-552.13,0.0002,2]
[375085893,1753522246677,-460.0,0.0002,2]
[375085895,1753522246690,-1556.48,0.0002,2]
[375085897,1753522246709,-460.0,0.0002,2]
[375085899,1753522246722,-509.44,0.0002,2]
[375085901,1753522246734,-900.37,0.0002,2]
[375085903,1753522246747,-2548.54,0.0002,2]
[375085905,1753522246760,-1206.65,0.0002,2]
[375085908,1753522246773,-460.0,0.0002,2]
[375085910,1753522246794,-202.27534398,0.0002,2]
[375085912,1753522246806,-460.0,0.0002,2]
[375085915,1753522246819,-151.0,0.0002,2]
[375085917,1753522246831,-471.79738491,0.0002,2]
[375085919,1753522246843,-151.0,0.0002,2]
[375085921,1753522246855,-151.0,0.0002,2]
[375085924,1753522246868,-3341.87,0.0002,2]
[375085926,1753522246881,-151.0,0.0002,2]
[375085928,1753522246893,-151.0,0.0002,2]
[375085930,1753522246906,-1171.81,0.0002,2]
[375085932,1753522246918,-528.0,0.0002,2]
[375085934,1753522246931,-460.0,0.0002,2]
[375085937,1753522246943,-460.0,0.0002,2]
[375085939,1753522246955,-460.0,0.0002,2]
[375085941,1753522246964,-1178.88,0.0002,2]
[375085943,1753522246974,-460.0,0.0002,2]
[375085945,1753522246983,-460.0,0.0002,2]
[375085947,1753522246993,-202.67053542,0.0002,2]
[375085962,1753522247139,-460.0,0.0002,2]
[375085964,1753522247148,-151.0,0.0002,2]
[375085966,1753522247158,-460.0,0.0002,2]
[375085968,1753522247168,-5956.3,0.0002,2]
[375085970,1753522247177,-151.0,0.0002,2]
[375085973,1753522247187,-151.0,0.0002,2]
[375085974,1753522247197,-3583.64,0.0002,2]
[375085976,1753522247206,-151.4718976,0.0002,2]
[375085979,1753522247217,-151.0,0.0002,2]
[375085980,1753522247227,-151.0,0.0002,2]
[375085982,1753522247236,-151.0,0.0002,2]
[375085984,1753522247246,-1603.51,0.0002,2]
[375085986,1753522247255,-151.0,0.0002,2]
[375085988,1753522247266,-151.0,0.0002,2]
[375085990,1753522247275,-248.75819819,0.0002,2]
[375085992,1753522247285,-151.0,0.0002,2]
[375085994,1753522247294,-151.0,0.0002,2]
[375085996,1753522247304,-460.0,0.0002,2]
[375085998,1753522247314,-460.0,0.0002,2]
[375086000,1753522247323,-2241.88,0.0002,2]
[375086002,1753522247333,-460.0,0.0002,2]
[375086004,1753522247342,-460.0,0.0002,2]
[375086006,1753522247352,-789.36,0.0002,2]
[375086008,1753522247362,-460.0,0.0002,2]
[375086010,1753522247371,-460.0,0.0002,2]
[375086012,1753522247380,-797.04,0.0002,2]
[375086014,1753522247390,-460.0,0.0002,2]
[375086016,1753522247399,-460.0,0.0002,2]
[375086018,1753522247409,-460.0,0.0002,2]
[375086020,1753522247418,-460.0,0.0002,2]
[375086022,1753522247428,-460.0,0.0002,2]
[375086024,1753522247437,-460.0,0.0002,2]
[375086026,1753522247446,-460.0,0.0002,2]
[375086028,1753522247456,-619.5,0.0002,2]
[375086030,1753522247465,-928.73,0.0002,2]
[375086032,1753522247479,-460.0,0.0002,2]
[375086034,1753522247489,-1034.45,0.0002,2]
[375086036,1753522247499,-3165.41,0.0002,2]
[375086038,1753522247509,-984.52,0.0002,2]
[375086040,1753522247519,-4002.67,0.0002,2]
[375086042,1753522247528,-3739.49,0.0002,2]
[375086044,1753522247537,-257.6296973,0.0002,2]
[375086046,1753522247546,-151.0,0.0002,2]
[375086047,1753522247557,-151.0,0.0002,2]
[375086050,1753522247567,-573.35,0.0002,2]
[375086052,1753522247576,-151.0,0.0002,2]
[375086054,1753522247586,-151.0,0.0002,2]
[375086055,1753522247595,-460.0,0.0002,2]
[375086057,1753522247605,-151.0,0.0002,2]
[375086060,1753522247615,-1082.57,0.0002,2]
[375086061,1753522247625,-460.0,0.0002,2]
[375086064,1753522247635,-460.0,0.0002,2]
[375086066,1753522247644,-918.24,0.0002,2]
[375086068,1753522247655,-2703.07,0.0002,2]
[375086070,1753522247664,-674.37,0.0002,2]
[375086072,1753522247674,-460.0,0.0002,2]
[375086074,1753522247683,-1584.35,0.0002,2]
[375086076,1753522247693,-460.0,0.0002,2]
[375086077,1753522247702,-726.62,0.0002,2]
[375086079,1753522247712,-460.0,0.0002,2]
[375086081,1753522247721,-595.67,0.0002,2]
[375086083,1753522247731,-460.0,0.0002,2]
[375086085,1753522247740,-151.31387012,0.0002,2]
[375086087,1753522247750,-151.0,0.0002,2]
[375086089,1753522247759,-2458.88,0.0002,2]
[375086091,1753522247769,-151.0,0.0002,2]
[375086093,1753522247778,-460.0,0.0002,2]
[375086095,1753522247787,-460.0,0.0002,2]
[375086097,1753522247797,-460.0,0.0002,2]
[375086099,1753522247807,-460.0,0.0002,2]
[375086101,1753522247816,-152.08575023,0.0002,2]
[375086103,1753522247825,-152.402634,0.0002,2]
[375086105,1753522247834,-152.48276809,0.0002,2]
[375086107,1753522247844,-460.0,0.0002,2]
[375086109,1753522247853,-751.64,0.0002,2]
[375086111,1753522247862,-460.0,0.0002,2]
[375086113,1753522247872,-460.0,0.0002,2]
[375086115,1753522247881,-460.0,0.0002,2]
[375086117,1753522247891,-1908.96,0.0002,2]
[375086119,1753522247903,-693.92,0.0002,2]
[375086121,1753522247912,-835.25,0.0002,2]
[375086123,1753522247922,-3327.66,0.0002,2]
[375086125,1753522247931,-460.0,0.0002,2]
[375086127,1753522247941,-3548.08,0.0002,2]
[375086129,1753522247951,-460.0,0.0002,2]
[375086131,1753522247960,-714.53,0.0002,2]
[375086133,1753522247969,-1195.09,0.0002,2]
[375086135,1753522247978,-11798.64,0.0002,2]
[375086137,1753522247988,-491.19,0.0002,2]
[375086139,1753522247998,-562.2,0.0002,2]
[375086141,1753522248007,-460.0,0.0002,2]
[375086143,1753522248016,-460.0,0.0002,2]
[375086144,1753522248025,-594.41,0.0002,2]
[375086146,1753522248035,-460.0,0.0002,2]
[375086148,1753522248045,-685.85,0.0002,2]
[375086150,1753522248055,-1737.36,0.0002,2]
[375086152,1753522248064,-930.64,0.0002,2]
[375086154,1753522248074,-460.0,0.0002,2]
[375086156,1753522248083,-152.35444116,0.0002,2]
[375086158,1753522248092,-1000.0,0.00020021,2]
[375086160,1753522248102,-1000.0,0.00020021,2]
[375086162,1753522248112,-2157.0,0.00020038,2]
[375086164,1753522248121,-969.0,0.00020038,2]